bitfinex-derivatives/quotes_SOLF0:USTF0_20250716
["timestamp","ask_amount","ask_price","bid_price","bid_amount"]
[1752630065521,9.32328152,164.63,164.6,6.0741]
[1752630065918,3.24978152,164.61,164.53,3.24978152]
[1752630066826,6.0747,164.6,164.57,6.0755]
[1752630067124,3.24978152,164.61,164.57,6.0755]
[1752630067326,9.32398152,164.61,164.58,6.075]
[1752630067525,3.24978152,164.61,164.53,3.24978152]
[1752630067726,372.12978152,164.63,164.55,3.24978152]
[1752630068026,3.24978152,164.61,164.5,12.1556]
[1752630068218,3.24978152,164.61,164.53,3.24978152]
[1752630069029,9.32408152,164.61,164.58,6.0751]
[1752630069521,3.24978152,164.61,164.53,3.24978152]
[1752630069726,6.0745,164.6,164.57,6.0754]
[1752630069928,3.24978152,164.59,164.49,3.24978152]
[1752630070125,6.076,164.56,164.49,3.24978152]
[1752630070727,6.076,164.56,164.52,6.0771]
[1752630070927,9.32538152,164.57,164.49,3.24978152]
[1752630071227,3.24978152,164.57,164.53,6.0768]
[1752630071429,9.32628152,164.55,164.47,528.46978152]
[1752630072729,9.32628152,164.55,164.52,6.0774]
[1752630076328,9.32628152,164.55,164.51,6.0776]
[1752630076830,3.24978152,164.55,164.47,525.22]
[1752630078130,191.0,164.58,164.47,525.22]
[1752630078131,3.24978152,164.53,164.49,6.0784]
[1752630078529,3.24978152,164.53,164.47,525.22]
[1752630079228,191.0,164.58,164.48,0.04099152]
[1752630079229,3.24978152,164.51,164.48,0.04099152]
[1752630079530,9.32698152,164.53,164.49,6.0784]
[1752630079830,3.24978152,164.53,164.49,6.0784]
[1752630080222,3.24978152,164.53,164.46,177.86]
[1752630081737,9.32678152,164.53,164.46,177.86]
[1752630082330,3.24978152,164.51,164.41,6.1641112]
[1752630082528,3.24978152,164.51,164.43,3.24978152]
[1752630082727,3.24978152,164.51,164.44,5.00154645]
[1752630082928,3.24978152,164.51,164.43,3.24978152]
[1752630083125,3.24978152,164.51,164.44,5.00195883]
[1752630083329,3.24978152,164.51,164.43,3.24978152]
[1752630083531,6.0783,164.5,164.46,6.0795]
[1752630083725,3.24978152,164.51,164.43,3.24978152]
[1752630083929,191.0,164.55,164.43,3.24978152]
[1752630084133,3.24978152,164.52,164.43,3.24978152]
[1752630084634,3.24978152,164.52,164.46,6.0793]
[1752630085126,3.24978152,164.52,164.45,6.0798]
[1752630085330,3.24978152,164.52,164.43,3.24978152]
[1752630086232,3.24978152,164.5,164.43,3.24978152]
[1752630086632,9.32808152,164.5,164.46,6.0794]
[1752630087941,6.0783,164.5,164.46,6.0794]
[1752630088237,6.0785,164.49,164.45,6.0798]
[1752630088438,3.24978152,164.49,164.42,177.86]
[1752630088838,9.32848152,164.49,164.44,6.08]
[1752630089440,9.32848152,164.49,164.42,177.86]
[1752630090040,9.32848152,164.49,164.45,6.0799]
[1752630090431,6.0788,164.48,164.45,6.0799]
[1752630090931,6.0786,164.49,164.45,6.0799]
[1752630091141,3.24978152,164.5,164.44,6.0801]
[1752630091440,3.24978152,164.5,164.42,181.10978152]
[1752630091441,6.079,164.48,164.42,177.86]
[1752630091635,191.0,164.52,164.43,3.24978152]
[1752630091836,3.24978152,164.51,164.45,6.0798]
[1752630092041,6.0787,164.49,164.45,6.0798]
[1752630092238,3.24978152,164.49,164.45,6.0798]
[1752630093041,9.32828152,164.49,164.45,6.0798]
[1752630093235,191.0,164.52,164.43,3.24978152]
[1752630093435,191.0,164.52,164.45,3.24978152]
[1752630093636,6.0779,164.51,164.45,3.24978152]
[1752630094543,197.0775,164.52,164.47,6.0789]
[1752630094843,197.0775,164.52,164.45,3.24978152]
[1752630095041,197.0775,164.52,164.47,6.0789]
[1752630095240,191.0,164.52,164.45,3.24978152]
[1752630095737,197.0776,164.52,164.48,6.0786]
[1752630096642,197.0776,164.52,164.47,6.0791]
[1752630098342,197.0776,164.52,164.48,6.0787]
[1752630099545,191.0,164.57,164.47,3.24978152]
[1752630099842,194.24978152,164.56,164.47,3.24978152]
[1752630102146,6.0763,164.55,164.5,6.0781]
[1752630103744,6.0763,164.55,164.51,6.0777]
[1752630103946,200.32578152,164.56,164.51,6.0777]
[1752630104238,194.24978152,164.56,164.47,3.24978152]
[1752630104847,6.0765,164.55,164.47,3.24978152]
[1752630105547,194.24978152,164.56,164.48,6.0785]
[1752630106149,6.0769,164.54,164.48,6.0785]
[1752630106442,3.24978152,164.54,164.48,6.0785]
[1752630106748,6.0772,164.53,164.48,6.0785]
[1752630107248,6.0776,164.52,164.47,6.0792]
[1752630108050,6.0772,164.53,164.45,3.24978152]
[1752630108751,6.0772,164.53,164.47,6.0791]
[1752630109151,6.0772,164.53,164.45,3.24978152]
[1752630109552,6.0772,164.53,164.48,6.0786]
[1752630111052,6.0774,164.52,164.48,6.0786]
[1752630111249,3.24978152,164.54,164.45,3.24978152]
[1752630111451,3.24978152,164.52,164.45,3.24978152]
[1752630111747,9.32738152,164.52,164.47,6.0791]
[1752630111952,3.24978152,164.52,164.47,6.0791]
[1752630112746,6.0777,164.51,164.46,6.0794]
[1752630113652,6.0782,164.5,164.46,6.0794]
[1752630114052,6.0782,164.5,164.45,6.0798]
[1752630115251,9.32798152,164.5,164.45,6.0798]
[1752630117958,6.0787,164.49,164.44,6.0801]
[1752630118157,3.24978152,164.48,164.42,177.84]
[1752630118550,6.0795,164.47,164.42,6.0809]
[1752630118749,6.0795,164.47,164.39,528.54978152]
[1752630118961,6.0795,164.47,164.4,4.97237769]
[1752630119159,9.32878152,164.48,164.43,6.0805]
[1752630120159,9.32878152,164.48,164.44,6.0803]
[1752630120559,3.24978152,164.48,164.41,3.24978152]
[1752630120762,177.82,164.51,164.43,3.24978152]
[1752630120964,177.82,164.51,164.44,8.22214861]
[1752630121165,6.0781,164.5,164.46,6.0794]
[1752630122065,6.0779,164.51,164.47,6.0792]
[1752630122266,3.24978152,164.52,164.4,8.34186156]
[1752630122466,3.24978152,164.52,164.45,3.24978152]
[1752630124061,191.0,164.53,164.46,4.97367959]
[1752630124269,191.0,164.53,164.45,3.24978152]
[1752630124765,6.0774,164.52,164.48,6.0785]
[1752630128965,6.0779,164.51,164.47,6.0791]
[1752630130667,6.0779,164.51,164.48,6.0788]
[1752630133074,136.2326807,164.53,164.48,6.0788]
[1752630133075,6.0775,164.52,164.48,6.0788]
[1752630135676,6.0777,164.51,164.48,6.0788]
[1752630136569,6.0775,164.52,164.48,6.0788]
[1752630136766,136.2326807,164.53,164.45,3.24978152]
[1752630136974,136.2326807,164.53,164.5,2.08189324]
[1752630138079,136.2326807,164.53,164.51,8.15939324]
[1752630140171,142.3098807,164.53,164.5,2.08189324]
[1752630140475,144.39177394,164.53,164.49,2.08189324]
[1752630140876,6.0767,164.54,164.49,2.08189324]
[1752630141175,18.01061696,164.63,164.49,3.25271344]
[1752630141176,3.25271344,164.57,164.49,3.25271344]
[1752630141472,6.0765,164.55,164.49,3.25271344]
[1752630142778,6.0765,164.55,164.52,6.0771]
[1752630143275,6.0761,164.56,164.49,3.25271344]
[1752630143583,180.97271344,164.58,164.49,3.25271344]
[1752630144579,3.25271344,164.56,164.49,3.25271344]
[1752630144981,6.077,164.53,164.51,6.0775]
[1752630145683,6.077,164.53,164.5,6.078]
[1752630146383,6.0768,164.54,164.51,6.0777]
[1752630151194,3.25271344,164.54,164.46,3.25271344]
[1752630151394,3.25271344,164.54,164.47,4.93862716]
[1752630151590,3.25271344,164.54,164.46,3.25271344]
[1752630151795,6.0775,164.52,164.49,6.0783]
[1752630153800,6.078,164.51,164.46,3.25271344]
[1752630154001,3.25271344,164.52,164.42,91.0800469]
[1752630154303,9.33031344,164.52,164.49,6.0784]
[1752630155101,3.25271344,164.55,164.46,3.25271344]
[1752630155305,3.25271344,164.55,164.48,3.25271344]
[1752630155602,134.53801574,164.56,164.48,3.25271344]
[1752630156100,140.61411574,164.56,164.53,6.0769]
[1752630156602,6.0763,164.55,164.53,6.0769]
[1752630156904,6.0763,164.55,164.52,6.0773]
[1752630158103,6.0766,164.54,164.52,6.0773]
[1752630158300,134.53801574,164.56,164.52,6.0773]
[1752630158704,6.0764,164.55,164.52,6.0773]
[1752630159104,134.53801574,164.56,164.53,6.0769]
[1752630159305,134.53801574,164.56,164.48,3.25271344]
[1752630159606,140.61411574,164.56,164.48,3.25271344]
[1752630159805,140.61411574,164.56,164.53,6.0767]
[1752630161102,140.61411574,164.56,164.52,6.0773]
[1752630161704,6.0763,164.55,164.52,6.0773]
[1752630162004,6.0763,164.55,164.51,6.0776]
[1752630163304,6.0763,164.55,164.52,6.0773]
[1752630164006,6.0767,164.54,164.51,6.0776]
[1752630164404,3.25271344,164.55,164.48,3.25271344]
[1752630165308,6.0772,164.53,164.49,6.0782]
[1752630165703,6.0772,164.53,164.5,6.0781]
[1752630169009,6.0768,164.54,164.51,6.0777]
[1752630169405,134.53801574,164.56,164.48,3.25271344]
[1752630169610,6.0763,164.55,164.52,6.0772]
[1752630171709,6.0763,164.55,164.44,5.09208004]
[1752630171908,3.25271344,164.55,164.47,3.25271344]
[1752630172308,3.25271344,164.55,164.5,6.0778]
[1752630172907,137.79072918,164.56,164.51,6.0777]
[1752630173108,137.79072918,164.56,164.47,3.25271344]
[1752630173612,6.0766,164.55,164.51,6.0775]
[1752630177910,3.25271344,164.54,164.42,96.17212694]
[1752630178114,3.25715048,164.46,164.43,4.91778361]
[1752630178415,3.25715048,164.44,164.33,3.25715048]
[1752630178612,3.25715048,164.4,164.34,4.91918872]
[1752630178815,3.25715048,164.4,164.33,3.25715048]
[1752630179111,6.0824,164.39,164.35,6.0834]
[1752630179315,3.25715048,164.4,164.35,6.0834]
[1752630179710,3.25715048,164.42,164.28,1.05902223]
[1752630179914,3.25715048,164.4,164.32,3.25715048]
[1752630180114,177.58,164.43,164.34,3.25715048]
[1752630180314,186.91785048,164.43,164.38,6.0823]
[1752630180617,9.33785048,164.43,164.38,6.0823]
[1752630180812,3.25715048,164.43,164.34,3.25715048]
[1752630181013,6.0811,164.42,164.37,6.0826]
[1752630181517,6.0811,164.42,164.34,3.25715048]
[1752630181518,3.25715048,164.41,164.38,6.0825]
[1752630182014,3.25715048,164.41,164.39,6.0821]
[1752630182418,183.66,164.45,164.36,3.25715048]
[1752630182718,3.25715048,164.46,164.38,3.25715048]
[1752630183918,3.25715048,164.46,164.43,6.0805]
[1752630186926,177.62,164.48,164.38,3.25715048]
[1752630187120,177.62,164.48,164.42,3.25715048]
[1752630187520,177.62,164.48,164.45,6.0797]
[1752630189623,177.62,164.48,164.46,6.0793]
[1752630191326,177.62,164.48,164.47,6.0792]
[1752630192224,24.14107183,164.5,164.42,3.25715048]
[1752630193928,30.21927183,164.5,164.47,6.079]
[1752630194823,30.21927183,164.5,164.48,6.0788]
[1752630195228,24.14107183,164.5,164.42,3.25715048]
[1752630195928,24.14107183,164.5,164.48,6.0787]
[1752630196927,30.21917183,164.5,164.48,6.0787]
[1752630198032,24.14107183,164.5,164.48,6.0787]
[1752630198532,24.14107183,164.5,164.49,6.0785]
[1752630198827,20.88392135,164.5,164.49,6.0785]
[1752630199134,177.62,164.51,164.5,6.0781]
[1752630201133,6.077,164.53,164.51,6.0777]
[1752630201934,177.58,164.54,164.51,6.0777]
[1752630201935,183.6568,164.54,164.51,6.0777]
[1752630202135,183.6568,164.54,164.46,3.25715048]
[1752630203232,183.6568,164.54,164.52,6.0773]
[1752630205238,183.6568,164.54,164.51,6.0775]
[1752630206437,183.6568,164.54,164.52,6.0773]
[1752630206637,177.58,164.54,164.52,6.0773]
[1752630206836,177.58,164.54,164.48,3.25715048]
[1752630207039,177.58,164.54,164.53,6.077]
[1752630207538,183.6567,164.54,164.52,0.0438203]
[1752630208941,177.58,164.54,164.52,6.1208203]
[1752630209837,177.58,164.54,164.53,6.077]
[1752630210339,0.04017879,164.55,164.54,6.0766]
[1752630211630,0.04017879,164.55,164.53,6.0767]
[1752630211832,0.04017879,164.55,164.52,0.0438203]
[1752630212440,0.04017879,164.55,164.54,6.0766]
[1752630216740,3.29732927,164.55,164.52,0.0438203]
[1752630217139,9.37382927,164.55,164.52,0.0438203]
[1752630218146,9.37382927,164.55,164.53,6.0769]
[1752630219046,3.29732927,164.55,164.53,6.0769]
[1752630219947,0.04017879,164.55,164.54,6.0766]
[1752630231565,0.04017879,164.55,164.53,6.0768]
[1752630232063,0.04017879,164.55,164.54,6.0766]
[1752630235066,3.29732927,164.55,164.52,0.0438203]
[1752630235262,3.25715048,164.53,164.52,0.0438203]
[1752630235468,3.25715048,164.53,164.47,6.079]
[1752630235664,3.25715048,164.5,164.47,6.079]
[1752630235862,3.25715048,164.5,164.42,3.25715048]
[1752630236061,3.25715048,164.5,164.46,6.0796]
[1752630236767,6.0787,164.49,164.46,6.0796]
[1752630237569,6.0789,164.48,164.46,6.0796]
[1752630237764,6.0789,164.48,164.45,6.0798]
[1752630238364,6.11987706,164.48,164.45,6.0798]
[1752630239367,9.37702754,164.48,164.45,6.0798]
[1752630239867,3.29812754,164.48,164.46,6.0795]
[1752630240964,3.29812754,164.48,164.47,6.0792]
[1752630241468,3.29812754,164.48,164.4,528.79715048]
[1752630241870,0.04097706,164.48,164.42,3.25715048]
[1752630243369,0.04097706,164.48,164.47,6.0792]
[1752630245466,0.04097706,164.48,164.4,525.54]
[1752630245768,0.04097706,164.48,164.41,3.25715048]
[1752630246470,0.04097706,164.48,164.46,6.0793]
[1752630247470,6.11997706,164.48,164.45,6.0798]
[1752630249467,6.11997706,164.48,164.46,6.0795]
[1752630249767,6.0792,164.47,164.41,3.25715048]
[1752630250267,6.11997706,164.48,164.41,3.25715048]
[1752630251866,0.04097706,164.48,164.41,3.25715048]
[1752630252867,0.04097706,164.48,164.46,6.0793]
[1752630254074,6.11987706,164.48,164.46,6.0793]
[1752630254274,0.04097706,164.48,164.46,6.0793]
[1752630254572,0.04097706,164.48,164.41,3.25715048]
[1752630254973,6.11977706,164.48,164.46,6.0795]
[1752630263581,6.11977706,164.48,164.38,12.1651]
[1752630263582,3.25715048,164.47,164.34,12.1678]
[1752630263872,3.25715048,164.45,164.38,3.25715048]
[1752630264072,9.33725048,164.45,164.42,6.0808]
[1752630264472,9.38300899,164.45,164.42,6.0808]
[1752630264678,0.04575851,164.45,164.44,6.0803]
[1752630264869,0.04575851,164.45,164.38,3.25715048]
[1752630265880,6.12585851,164.45,164.43,6.0805]
[1752630266680,0.04575851,164.45,164.44,6.0803]
[1752630266880,3.30290899,164.45,164.35,177.3]
[1752630267172,9.33735048,164.45,164.42,6.0808]
[1752630267784,9.38085783,164.45,164.42,6.0808]
[1752630268675,9.38085783,164.45,164.37,3.25715048]
[1752630268676,6.12370735,164.45,164.37,3.25715048]
[1752630268980,0.04350735,164.45,164.39,3.25715048]
[1752630269381,6.0801,164.45,164.42,6.0808]
[1752630269880,0.04571898,164.44,164.42,6.0808]
[1752630270080,0.04571898,164.44,164.43,6.0807]
[1752630276481,0.04571898,164.44,164.42,6.0809]
[1752630276885,0.04571898,164.44,164.37,3.25715048]
[1752630277380,6.081,164.43,164.37,3.25715048]
[1752630277585,3.25715048,164.43,164.35,180.55715048]
[1752630277987,9.33805048,164.43,164.35,180.55715048]
[1752630278386,0.04497407,164.41,164.35,180.55715048]
[1752630278685,0.04497407,164.41,164.4,6.0817]
[1752630281180,0.04497407,164.41,164.39,6.082]
[1752630281380,0.04497407,164.41,164.35,180.55715048]
[1752630281582,0.04497407,164.41,164.35,177.3]
[1752630281979,0.04497407,164.41,164.38,6.0823]
[1752630282376,6.0821,164.4,164.37,6.0828]
[1752630283284,6.0822,164.39,164.37,6.0828]
[1752630283487,3.30212455,164.41,164.36,6.0831]
[1752630283788,3.25715048,164.41,164.36,6.0831]
[1752630284087,6.0824,164.39,164.36,6.0831]
[1752630284887,6.0824,164.39,164.37,6.0829]
[1752630285283,6.0824,164.39,164.33,3.25715048]
[1752630285486,6.0824,164.39,164.36,6.0831]
[1752630286086,6.0824,164.39,164.37,6.0829]
[1752630287886,6.0824,164.39,164.32,525.58]
[1752630288088,9.33955048,164.39,164.36,6.0831]
[1752630288291,3.25715048,164.39,164.32,525.58]
[1752630288590,3.25715048,164.39,164.34,6.0837]
[1752630288787,3.25715048,164.37,164.34,6.0837]
[1752630289190,3.29984297,164.37,164.34,6.0837]
[1752630289890,3.29984297,164.37,164.31,177.24]
[1752630290591,3.29984297,164.37,164.36,6.0833]
[1752630290791,3.29984297,164.37,164.31,177.24]
[1752630291187,3.29984297,164.37,164.33,6.0842]
[1752630291892,6.0837,164.35,164.33,6.0842]
[1752630292089,3.29984297,164.37,164.33,6.0842]
[1752630292589,6.0837,164.35,164.33,6.0842]
[1752630293092,6.0835,164.36,164.33,6.0842]
[1752630293288,6.0835,164.36,164.34,6.084]
[1752630293693,9.38284297,164.37,164.34,6.084]
[1752630293893,0.04269249,164.37,164.35,6.0836]
[1752630294092,3.29984297,164.37,164.35,6.0836]
[1752630294294,9.38294297,164.37,164.29,3.25715048]
[1752630294796,6.0833,164.36,164.34,6.0838]
[1752630295496,9.38284297,164.37,164.34,6.0838]
[1752630295798,3.29984297,164.37,164.35,6.0836]
[1752630299496,9.38294297,164.37,164.35,6.0836]
[1752630301901,6.0834,164.36,164.34,6.0839]
[1752630302502,9.38677128,164.37,164.34,6.0839]
[1752630303604,9.38677128,164.37,164.35,6.0836]
[1752630303897,3.30367128,164.37,164.27,177.24]
[1752630304095,0.0465208,164.37,164.27,177.24]
[1752630304298,191.0,164.36,164.27,177.24]
[1752630304498,3.25715048,164.34,164.27,180.49715048]
[1752630304694,3.30324523,164.34,164.33,6.0843]
[1752630307103,0.04609475,164.34,164.33,6.0843]
[1752630307310,9.475e-05,164.34,164.33,6.0843]
[1752630313711,9.475e-05,164.34,164.33,9.34145048]
[1752630314413,9.475e-05,164.34,164.33,6.0843]
[1752630328226,9.475e-05,164.34,164.29,0.03956047]
[1752630328823,9.475e-05,164.34,164.32,6.0845]
[1752630331125,9.475e-05,164.34,164.33,6.0844]
[1752630333330,6.08429475,164.34,164.32,6.0846]
[1752630334031,6.0844,164.33,164.29,0.03956047]
[1752630334331,3.25724523,164.34,164.29,0.03956047]
[1752630334631,6.0855,164.31,164.29,0.03956047]
[1752630336234,6.0855,164.3,164.29,0.03956047]
[1752630336433,9.34265048,164.3,164.29,0.00051297]
[1752630339639,9.34265048,164.3,164.16,529.25715048]
[1752630339640,186.73715048,164.3,164.18,177.4]
[1752630339933,3.25715048,164.24,164.16,3.25715048]
[1752630340729,9.34505048,164.24,164.16,3.25715048]
[1752630340930,0.03913512,164.22,164.21,6.0887]
[1752630346438,3.512e-05,164.22,164.21,6.0887]
[1752630350838,191.0,164.29,164.2,3.30028575]
[1752630351040,3.25715048,164.32,164.24,3.25715048]
[1752630351336,191.0,164.31,164.24,3.25715048]
[1752630351536,191.0,164.31,164.26,3.25715048]
[1752630352036,191.0,164.31,164.27,0.03997987]
[1752630352436,197.0854,164.31,164.27,6.12667987]
[1752630352634,194.25715048,164.31,164.27,0.03997987]
[1752630353038,200.34245048,164.31,164.27,6.12657987]
[1752630353744,200.34245048,164.31,164.27,0.03997987]
[1752630354244,6.0856,164.3,164.27,0.03997987]
[1752630354943,3.25715048,164.29,164.27,0.03997987]
[1752630355649,6.0863,164.28,164.27,0.03997987]
[1752630358646,6.0885,164.22,164.17,526.24]
[1752630358853,6.0885,164.22,164.17,6.0903]
[1752630359151,3.25715048,164.23,164.14,3.25715048]
[1752630359349,6.0889,164.21,164.16,6.0905]
[1752630359650,3.25715048,164.23,164.14,3.25715048]
[1752630359952,0.04548814,164.2,164.14,3.25715048]
[1752630360950,0.04548814,164.2,164.16,3.25715048]
[1752630362751,3.25715048,164.26,164.18,3.25715048]
[1752630362948,194.25715048,164.28,164.2,3.25715048]
[1752630363153,6.0868,164.27,164.23,6.0881]
[1752630363747,194.25715048,164.28,164.2,3.25715048]
[1752630363951,191.0,164.28,164.22,3.25715048]
[1752630364347,191.0,164.28,164.16,3.25715048]
[1752630364555,3.25715048,164.3,164.23,3.25715048]
[1752630364756,9.34305048,164.3,164.25,6.0871]
[1752630365253,9.34305048,164.3,164.23,3.25715048]
[1752630365555,9.34305048,164.3,164.26,6.0868]
[1752630366457,6.086,164.29,164.25,6.0873]
[1752630367252,9.34285048,164.3,164.26,6.087]
[1752630367652,3.25715048,164.3,164.23,3.25715048]
[1752630368659,6.0856,164.3,164.23,3.25715048]
[1752630369148,6.0856,164.3,164.24,3.25715048]
[1752630370158,6.0856,164.3,164.26,6.0868]
[1752630371261,6.0856,164.3,164.24,9.34455048]
[1752630371460,6.086,164.29,164.24,9.34455048]
[1752630371760,3.25715048,164.31,164.24,9.34455048]
[1752630371956,3.25715048,164.29,164.21,3.25715048]
[1752630372155,3.25715048,164.27,164.21,3.25715048]
[1752630372757,9.34395048,164.27,164.22,6.0885]
[1752630375956,3.25715048,164.27,164.23,6.0879]
[1752630376161,3.25715048,164.27,164.16,529.55715048]
[1752630376363,9.34405048,164.27,164.22,6.0883]
[1752630377265,6.0869,164.27,164.23,6.0881]
[1752630377455,9.34365048,164.28,164.23,6.0881]
[1752630377660,3.25715048,164.28,164.23,6.0881]
[1752630378367,3.25715048,164.29,164.24,6.0878]
[1752630378568,3.25715048,164.29,164.16,529.55715048]
[1752630378771,6.0867,164.27,164.23,6.0879]
[1752630379471,191.0,164.31,164.22,3.25715048]
[1752630379771,3.25715048,164.29,164.22,3.25715048]
[1752630379973,6.0871,164.26,164.22,9.34545048]
[1752630381075,6.0871,164.26,164.22,6.0883]
[1752630383677,6.0874,164.25,164.21,6.0888]
[1752630384878,6.0879,164.24,164.21,6.0888]
[1752630385678,3.25715048,164.25,164.18,3.25715048]
[1752630386277,6.0884,164.23,164.19,6.0894]
[1752630386678,6.0884,164.23,164.2,6.0891]
[1752630386979,6.0879,164.24,164.2,6.0891]
[1752630387178,191.0,164.27,164.2,3.25715048]
[1752630387580,191.0,164.27,164.2,3.26461067]
[1752630388884,6.0871,164.26,164.23,6.0879]
[1752630390281,197.0868,164.27,164.23,6.0879]
[1752630390784,197.0868,164.27,164.24,6.0877]
[1752630390984,191.0,164.27,164.22,3.26461067]
[1752630391185,191.0,164.27,164.16,712.396683]
[1752630391384,194.26461067,164.3,164.24,6.0876]
[1752630392186,6.0868,164.27,164.24,6.0876]
[1752630395589,6.0864,164.28,164.25,6.0873]
[1752630395788,194.26461067,164.3,164.21,3.26461067]
[1752630396088,6.0867,164.27,164.25,6.0874]
[1752630396388,6.0867,164.27,164.21,3.26461067]
[1752630396689,194.26461067,164.3,164.21,3.26461067]
[1752630396887,6.0865,164.28,164.24,6.0874]
[1752630397083,6.0865,164.28,164.21,3.26461067]
[1752630397288,6.0865,164.28,164.25,6.0871]
[1752630399888,191.0,164.3,164.25,3.26347077]
[1752630400092,3.26347077,164.34,164.25,3.3085538]
[1752630400392,3.26347077,164.34,164.25,3.26347077]
[1752630400587,6.0854,164.31,164.28,6.0861]
[1752630400783,6.0854,164.31,164.28,6.12722086]
[1752630400987,3.26347077,164.34,164.28,0.04112086]
[1752630401287,6.0859,164.29,164.28,0.04112086]
[1752630404982,6.0857,164.3,164.28,0.04112086]
[1752630405183,3.26347077,164.32,164.28,0.04112086]
[1752630405384,3.26347077,164.34,164.28,0.04112086]
[1752630405590,6.0854,164.31,164.28,0.04112086]
[1752630406086,6.0859,164.29,164.28,0.04112086]
[1752630406288,181.14327606,164.35,164.28,0.04112086]
[1752630406490,3.26199543,164.34,164.28,0.04112086]
[1752630406689,6.0851,164.32,164.28,0.04112086]
[1752630407287,6.0853,164.31,164.28,0.04112086]
[1752630408887,6.085,164.32,164.28,0.04112086]
[1752630409286,3.26199543,164.32,164.28,0.04112086]
[1752630409493,6.0854,164.31,164.28,0.04112086]
[1752630409889,3.26199543,164.32,164.28,0.04112086]
[1752630410198,6.0849,164.32,164.28,0.04112086]
[1752630411389,6.0853,164.31,164.28,0.04112086]
[1752630412096,6.0849,164.32,164.28,0.04112086]
[1752630413396,6.0849,164.32,164.28,6.12742086]
[1752630413697,194.26199543,164.34,164.28,0.04112086]
[1752630414196,6.0847,164.33,164.28,6.12712086]
[1752630414397,6.0847,164.33,164.28,0.04112086]
[1752630415095,6.0847,164.33,164.29,6.0859]
[1752630416092,9.34609543,164.34,164.28,0.04112086]
[1752630416799,6.0845,164.33,164.28,0.04112086]
[1752630417095,6.0845,164.33,164.29,6.0858]
[1752630420293,9.34619543,164.34,164.28,0.04112086]
[1752630420497,3.26199543,164.34,164.28,0.04112086]
[1752630420898,177.88,164.35,164.28,3.30311629]
[1752630421797,6.0842,164.34,164.3,6.0854]
[1752630421992,177.88,164.35,164.28,3.30311629]
[1752630422190,3.26199543,164.34,164.28,3.30311629]
[1752630422597,6.0847,164.33,164.29,6.0857]
[1752630425299,3.26199543,164.34,164.28,0.04112086]
[1752630425604,3.26199543,164.32,164.28,0.04112086]
[1752630425803,6.0856,164.3,164.28,0.04112086]
[1752630426502,6.0853,164.31,164.28,0.04112086]
[1752630427000,9.34699543,164.32,164.28,6.12742086]
[1752630429006,6.0852,164.31,164.28,0.04112086]
[1752630429707,6.0856,164.3,164.28,0.04112086]
[1752630432205,6.0859,164.29,164.28,0.04112086]
[1752630433211,6.0859,164.29,164.19,132.01262994]
[1752630433212,191.0,164.29,164.18,3.26199543]
[1752630433410,3.26199543,164.24,164.16,529.56199543]
[1752630433606,3.26199543,164.22,164.18,6.0899]
[1752630434312,178.14,164.25,164.19,6.0896]
[1752630434508,3.26199543,164.24,164.16,3.26199543]
[1752630434907,3.26199543,164.24,164.21,6.0888]
[1752630435807,3.26199543,164.24,164.22,6.0884]
[1752630436715,178.14,164.25,164.18,3.26199543]
[1752630437409,178.14,164.25,164.23,6.0881]
[1752630437610,194.26199543,164.26,164.23,6.0881]
[1752630437808,194.26199543,164.26,164.18,3.26199543]
[1752630438004,194.26199543,164.26,164.24,6.0875]
[1752630438208,194.26199543,164.26,164.2,3.26199543]
[1752630438508,3.26199543,164.28,164.2,3.26199543]
[1752630440719,9.34839543,164.28,164.25,6.0872]
[1752630441017,369.1,164.29,164.25,6.0872]
[1752630441217,9.34839543,164.28,164.23,6.0879]
[1752630444920,3.26199543,164.28,164.2,3.26199543]
[1752630445817,3.26199543,164.28,164.24,6.0875]
[1752630446022,3.26199543,164.28,164.2,3.26199543]
[1752630446321,3.26199543,164.28,164.25,6.0873]
[1752630447119,3.26199543,164.28,164.24,6.0877]
[1752630448016,9.34839543,164.28,164.24,6.0877]
[1752630449516,369.1,164.29,164.25,6.0873]
[1752630449716,178.1,164.29,164.25,6.0873]
[1752630450524,184.186,164.29,164.25,6.0873]
[1752630454423,6.0864,164.28,164.24,6.0876]
[1752630455018,187.44809543,164.29,164.24,6.0876]